fUST/lending_fUST_20240104
["ID","MTS","AMOUNT","RATE_DAILY","PERIOD"]
[310095634,1704327039810,-243.26967795,0.0003,4]
[310095636,1704327039824,-909.967102,0.0003,2]
[310095639,1704327039838,-909.967102,0.0003,2]
[310095641,1704327039852,-151.0,0.0003,2]
[310095644,1704327039865,-151.0,0.0003,2]
[310095646,1704327039879,-793.444071,0.0003,2]
[310095649,1704327039892,-793.444071,0.0003,2]
[310095651,1704327039906,-351.0,0.0003,2]
[310095653,1704327039920,-793.444071,0.00030137,2]
[310095656,1704327039934,-793.444071,0.00030137,2]
[310095658,1704327039948,-3103.0571967,0.00030137,2]
[310095661,1704327039962,-280.0,0.00031603,15]
[310095663,1704327039973,-151.0,0.00031603,2]
[310095672,1704327040053,-151.15292337,0.00031603,2]
[310095675,1704327040067,-151.0,0.00031713,2]
[310095677,1704327040077,-183.74133472,0.00032,50]
[310095679,1704327040087,-6406.91272237,0.000325,15]
[310095681,1704327040097,-909.967102,0.000325,2]
[310095683,1704327040106,-909.967102,0.000325,2]
[310095685,1704327040115,-793.444071,0.000325,2]
[310095687,1704327040124,-793.444071,0.000325,2]
[310095690,1704327040133,-620.16555428,0.0003264,2]
[310095691,1704327040143,-151.0,0.0003264,2]
[310095695,1704327040152,-154.85858528,0.00032869,2]
[310095698,1704327040162,-333.0,0.00033,2]
[310095700,1704327040172,-333.0,0.00033151,2]
[310095702,1704327040181,-151.0,0.00033928,2]
[310095704,1704327040190,-1000.0,0.00034,7]
[310095706,1704327040199,-4657.66153763,0.00034,2]
[310095708,1704327040209,-1393.709427,0.00034,2]
[310095710,1704327040219,-909.967102,0.00034,2]
[310095712,1704327040229,-909.967102,0.00034,2]
[310095714,1704327040239,-793.444071,0.00034,2]
[310095716,1704327040248,-793.444071,0.00034,2]
[310095719,1704327040258,-620.00827771,0.00034272,2]
[310095722,1704327040268,-151.0,0.00034272,2]
[310095725,1704327040277,-333.0,0.00034521,2]
[310095727,1704327040286,-413.50609139,0.00034648,2]
[310095729,1704327040295,-1246.93759221,0.00034728,12]
[310095731,1704327040305,-391.0,0.00034763,15]
[310095734,1704327040314,-944.51958651,0.00034998,4]
[310095736,1704327040323,-520.2185,0.00034998,4]
[310095738,1704327040332,-360.177092,0.00034998,2]
[310095740,1704327040342,-155.06856509,0.00034998,2]
[310095742,1704327040351,-909.967102,0.00034999,2]
[310095744,1704327040360,-909.967102,0.00034999,2]
[310095746,1704327040370,-151.0,0.00034999,2]
[310095748,1704327040379,-793.444071,0.00034999,2]
[310095749,1704327040388,-793.444071,0.00034999,2]
[310095751,1704327040397,-356.1020647,0.00034999,4]
[310095753,1704327040406,-45727.64768334,0.00035,4]
[310095755,1704327040415,-1454.45537407,0.00035,14]
[310095757,1704327040424,-331.97293247,0.00035,4]
[310095759,1704327040434,-590.27084275,0.00035,2]
[310095761,1704327040443,-154.8915759,0.00035,4]
[310095763,1704327040452,-2773.98385708,0.00035,4]
[310095765,1704327040462,-154.84515385,0.00035,2]
[310095767,1704327040472,-909.967102,0.00035,2]
[310095769,1704327040481,-909.967102,0.00035,2]
[310095771,1704327040490,-151.0,0.00035,2]
[310095773,1704327040500,-793.444071,0.00035,2]
[310095775,1704327040510,-793.444069,0.00035,2]
[310095777,1704327040519,-410.0,0.00035452,2]
[310095779,1704327040528,-464.835942,0.00035616,120]
[310095781,1704327040537,-909.967102,0.00035899,2]
[310095783,1704327040547,-909.967102,0.00035899,2]
[310095785,1704327040556,-232.57470138,0.000359,4]
[310095787,1704327040564,-464.94485982,0.00036,3]
[310095789,1704327040574,-10324.96521411,0.00036,4]
[310095791,1704327040583,-229.99225833,0.00036,4]
[310095793,1704327040592,-639.11880307,0.00036,30]
[310095795,1704327040601,-18141.75085782,0.00036,2]
[310095805,1704327040681,206.96395201,0.00024812,2]
[310095809,1704327040714,154.8915759,0.00022952,4]
[310095813,1704327040746,2588.60652606,0.00024992,2]
[310095863,1704327041208,-154.8915759,0.000255,2]
[310095865,1704327041219,-198.55633635,0.000255,2]
[310095867,1704327041228,-664.99,0.00029489,3]
[310095869,1704327041238,-1652.77412843,0.00036,2]
[310095872,1704327041250,-1737.97855257,0.00036,2]
[310096072,1704327043187,-3131.2496151,0.00036,2]
[310096367,1704327046159,-2692.31214738,0.00026118,2]
[310096369,1704327046168,-500.0,0.00029498,2]
[310096371,1704327046177,-500.0,0.00029498,2]
[310096373,1704327046187,-224.26378135,0.00029498,2]
[310096375,1704327046196,-600.40234889,0.00029498,2]
[310096377,1704327046205,-418.19783601,0.00032876,7]
[310096379,1704327046214,-500.0,0.00032876,7]
[310096381,1704327046224,-360.24140934,0.00032876,7]
[310096383,1704327046233,-304.37864938,0.00035999,2]
[310096385,1704327046242,-908.10819062,0.00035999,4]
[310096387,1704327046254,-119.72561613,0.00035999,4]
[310096480,1704327047590,5000.0,0.00025335,5]
[310096910,1704327053374,3000.0,0.00025334,2]
[310098436,1704327071979,3002.11024084,0.00025,2]
[310098437,1704327085965,1543.42331096,0.00025,2]
[310098438,1704327091083,2304.03964613,0.00023505,2]
[310098439,1704327105805,233.71954556,0.00025334,2]
[310098440,1704327112603,200.0,0.00025334,2]
[310098441,1704327114505,341.94838101,0.00025334,2]
[310098442,1704327114700,124695.86244308,0.00025334,7]
[310098443,1704327274317,189.49545276,0.00022801,2]
[310098444,1704327284965,170.570232,0.00023889,2]
[310098445,1704327305070,3826.3698118,0.00023889,2]
[310098446,1704327309117,200.0,0.00023889,2]
[310098447,1704327310814,808.765353,0.00023889,2]
[310098448,1704327319060,3826.3698118,0.00023889,2]
[310098449,1704327320982,341.94838101,0.00023889,2]
[310098450,1704327324821,808.765353,0.00023889,2]
[310098451,1704327327120,200.0,0.00023889,2]
[310098452,1704327339065,3826.3698118,0.00023889,2]
[310098453,1704327340849,808.765353,0.00023889,2]
[310098454,1704327341088,341.94838101,0.00023889,2]
[310098455,1704327347200,200.0,0.00023889,2]
[310098456,1704327360819,808.765353,0.00023889,2]
[310098457,1704327360990,341.94838101,0.00023889,2]
[310098458,1704327361067,3826.3698118,0.00023889,2]
[310098459,1704327361723,464.41430275,0.00022752,2]
[310098460,1704327365128,200.0,0.00023889,2]
[310098461,1704327376824,808.765353,0.00023889,2]
[310098462,1704327379064,3826.3698118,0.00023889,2]
[310098463,1704327382992,341.94838101,0.00023889,2]
[310098464,1704327385138,200.0,0.00023889,2]
[310098465,1704327395079,3826.3698118,0.00023889,2]
[310098466,1704327396823,808.765353,0.00023889,2]
[310098467,1704327402992,341.94838101,0.00023889,2]
[310098468,1704327403122,200.0,0.00023889,2]
[310098469,1704327417744,348.90268,0.00024261,2]
[310098470,1704327418244,348.90268,0.00024261,2]
[310098471,1704327418577,348.90268,0.00024261,2]
[310098472,1704327418827,808.765353,0.00023889,2]
[310098473,1704327418904,348.90268,0.00024261,2]
[310098474,1704327419298,348.90268,0.00024261,2]
[310098475,1704327421075,3826.3698118,0.00023889,2]
[310098476,1704327421122,200.0,0.00023889,2]
[310098480,1704327424993,341.94838101,0.00023889,2]
[310098481,1704327436830,808.765353,0.00023889,2]
[310098482,1704327439071,3826.3698118,0.00023889,2]
[310098483,1704327441324,200.0,0.00023889,2]
[310098484,1704327446996,341.94838101,0.00023889,2]
[310098485,1704327454833,808.765353,0.00023889,2]
[310098486,1704327459236,3826.3698118,0.00023889,2]
[310098487,1704327461169,200.0,0.00023889,2]
[310098488,1704327465003,341.94838101,0.00023889,2]
[310098489,1704327472721,1179.20308121,0.00024248,2]
[310098492,1704327527726,1488.4984708,0.00022887,2]
[310098493,1704327574006,341.94838101,0.00022887,2]
[310098494,1704327576094,3826.3698118,0.00022887,2]
[310098495,1704327576147,200.0,0.00022887,2]
[310098496,1704327583858,808.765353,0.00022887,2]
[310098499,1704327590009,341.94838101,0.00022887,2]
[310098500,1704327590089,3826.3698118,0.00022887,2]
[310098501,1704327594173,8304.818333,0.00022869,2]
[310098502,1704327594206,200.0,0.00022887,2]
[310098503,1704327601866,808.765353,0.00022887,2]
[310098504,1704327606106,3826.3698118,0.00022887,2]
[310098505,1704327608013,341.94838101,0.00022887,2]
[310098506,1704327616240,200.0,0.00022887,2]
[310098507,1704327621850,484.19791177,0.00022887,2]
[310098508,1704327621877,324.56744123,0.00022887,2]
[310098509,1704327622105,3826.3698118,0.00022887,2]
[310098510,1704327626008,341.94838101,0.00022887,2]
[310098511,1704327635857,808.765353,0.00022887,2]
[310098512,1704327638291,200.0,0.00022887,2]
[310098513,1704327644018,341.94838101,0.00022887,2]
[310098514,1704327644093,3826.3698118,0.00022887,2]
[310098515,1704327653856,346.86098241,0.00022887,2]
[310098516,1704327656164,200.0,0.00022887,2]
[310098517,1704327660024,341.94838101,0.00022887,2]
[310098518,1704327660226,3826.3698118,0.00022887,2]
[310098519,1704327678029,341.94838101,0.00022887,2]
[310098520,1704327682113,3826.3698118,0.00022887,2]
[310098521,1704327696067,341.94838101,0.00022887,2]
[310098522,1704327710193,1171.65424659,0.00022887,2]
[310098523,1704327716034,406.14523904,0.00022887,2]
[310098526,1704327772625,170.570232,0.00022356,2]
[310098531,1704327881051,-198.55633635,0.00022355,2]
[310098532,1704327881079,-520.2185,0.00022355,2]
[310098533,1704327881106,-154.8915759,0.00022355,2]
[310098534,1704327881134,-1521.43996092,0.00022356,2]
[310098535,1704327881161,-20831.85137104,0.00023701,2]
[310098536,1704327881190,-3775.33,0.00023702,3]
[310098537,1704327881218,-7853.18847264,0.00023711,2]
[310098538,1704327881246,-2027.03693589,0.00023711,2]
[310098539,1704327881286,-559.68125324,0.00023711,2]
[310098540,1704327881323,-2090.15137702,0.00023711,2]
[310098541,1704327881354,-683.05428955,0.00023711,2]
[310098542,1704327881386,-9901.73084191,0.00023711,2]
[310098543,1704327881418,-26377.44033991,0.00023711,2]
[310098544,1704327881448,-1238.07238046,0.00023711,2]
[310098545,1704327881479,-3472.7300767,0.00023712,2]
[310098546,1704327881510,-78250.97365781,0.00023712,2]
[310098547,1704327881539,-859.47841956,0.00023712,2]
[310098548,1704327881567,-2804.5410618,0.00023713,2]
[310098549,1704327881596,-3732.74533379,0.00023713,2]
[310098550,1704327881624,-675.8919533,0.00023713,2]
[310098551,1704327881652,-178.24808117,0.00023713,2]
[310098552,1704327881778,-2631.68489228,0.00023713,2]
[310098553,1704327881805,-1029.00208641,0.00023714,2]
[310098554,1704327881831,-300.83380095,0.00023714,2]
[310098555,1704327881859,-154.8915759,0.00023714,2]
[310098556,1704327881886,-944.51958651,0.00023714,2]
[310098557,1704327881914,-169.68033041,0.00023714,2]
[310098558,1704327881940,-19632.2086524,0.00023714,2]
[310098559,1704327881967,-154.8915759,0.00023715,2]
[310098560,1704327881995,-524.84202363,0.00023715,2]
[310098561,1704327882022,-154.8915759,0.00023715,2]
[310098562,1704327882048,-871.16529394,0.00023715,2]
[310098563,1704327882075,-5724.13638681,0.00023715,2]
[310098564,1704327912138,-605.76569504,0.00022353,2]
[310098565,1704327912165,-873.72208253,0.00022354,2]
[310098566,1704327912193,-285.30351426,0.00022354,2]
[310098567,1704327912219,-1576.20853557,0.00022354,2]
[310098568,1704327912251,-154.8915759,0.00022354,4]
[310098569,1704327912278,-13673.02936715,0.00022354,2]
[310098570,1704327912304,-4803.68452735,0.00022355,2]
[310098571,1704327912330,-369.22605694,0.00022355,2]
[310098572,1704327912356,-2031.60443603,0.00022355,2]
[310098573,1704327912382,-154.8915759,0.00022355,2]
[310098574,1704327912408,-154.8915759,0.00022355,2]
[310098575,1704327912435,-806.20878832,0.00022356,2]
[310098576,1704327912462,-155.14279736,0.00022356,2]
[310098577,1704327912490,-18831.63477527,0.00022356,2]
[310098578,1704327912515,-683.05428955,0.00022526,2]
[310098579,1704327912541,-3472.7300767,0.0002324,2]
[310098580,1704327912567,-26377.44033991,0.00023477,2]
[310098581,1704327912666,-639.51752231,0.00023712,2]
[310098582,1704327912695,-154.8915759,0.00023712,2]
[310098583,1704327912721,-293.22663759,0.00023713,2]
[310098584,1704327912748,-19632.2086524,0.00023713,2]
[310098585,1704327912779,-520.2185,0.00023713,2]
[310098586,1704327912807,-1584.80241164,0.00023714,2]
[310098587,1704327912834,-944.51958651,0.00023714,2]
[310098588,1704327912861,-859.47841956,0.00023714,2]
[310098589,1704327912887,-220.79551148,0.00023714,2]
[310098590,1704327912914,-2090.15137702,0.00023714,2]
[310098591,1704327912940,-871.16529394,0.00023714,2]
[310098592,1704327912967,-198.55633635,0.00023714,2]
[310098593,1704327912996,-9885.19845646,0.00023714,2]
[310098594,1704327913024,-559.68125324,0.00023714,2]
[310098595,1704327913051,-5952.2372376,0.00023714,2]
[310098596,1704327913077,-3732.74533379,0.00023714,2]
[310098597,1704327913103,-178.24808117,0.00023714,2]
[310098598,1704327913129,-1729.17431111,0.00023714,2]
[310098599,1704327913155,-2027.03693589,0.00023714,2]
[310098600,1704327913182,-14287.45222525,0.00023714,2]
[310098601,1704327913209,-1027.92371848,0.00023714,2]
[310098602,1704327913238,-524.84202363,0.00023714,2]
[310098603,1704327913265,-300.83380095,0.00023714,2]
[310098604,1704327913292,-675.8919533,0.00023714,2]
[310098605,1704327913319,-154.8915759,0.00023714,2]
[310098606,1704327913347,-267.37148815,0.00023714,2]
[310098607,1704327913374,-1238.07238046,0.00023714,2]
[310098608,1704327913402,-2804.5410618,0.00023714,2]
[310098609,1704327913429,-13421.29238874,0.00023715,2]
[310098610,1704327913456,-309.62845823,0.00023724,2]
[310098611,1704327913482,-154.8915759,0.00023724,2]
[310098612,1704327913509,-155.05448458,0.00023725,2]
[310098613,1704327913535,-155.03961238,0.00023784,2]
[310098614,1704327913771,155.22297543,0.00023715,2]
[310098615,1704327913807,1051.21541603,0.00022352,7]
[310098616,1704327913839,5477.64,0.00023703,3]
[310098617,1704327913875,305.67093177,0.00022352,2]
[310098618,1704327913906,155.57384979,0.00022352,2]
[310098619,1704327913941,533.17266667,0.00022356,2]
[310098620,1704327914879,176.29639192,0.00022352,2]
[310098621,1704327915914,154.8915759,0.00023702,2]
[310098622,1704327916396,1485.28834198,0.00023702,2]
[310098623,1704327917228,261.55068546,0.00023702,2]
[310098624,1704327924065,2386.25214482,0.00023761,2]
[310098625,1704327924207,154.8915759,0.00021821,4]
[310098626,1704327927870,205.45724491,0.00023715,2]
[310098627,1704327929727,207.14506287,0.00023033,2]
[310098628,1704327930120,5356.50110146,0.00021821,2]
[310098629,1704327932441,361.16614101,0.00024246,7]
[310098630,1704327943359,1521.43996092,0.00023715,2]
[310098631,1704327943529,2076.07378809,0.00023715,2]
[310098632,1704327945113,533.38069631,0.00023715,2]
[310098633,1704327945229,165.76756765,0.00023715,2]
[310098634,1704327946204,154.8915759,0.00021819,4]
[310098635,1704327946753,1464.41511106,0.00018183,2]
[310098636,1704327947517,154.8915759,0.00023715,2]
[310098637,1704327948390,154.8915759,0.00023715,2]
[310098638,1704327949630,300.0,0.00023715,2]
[310098639,1704327952507,5210.9786353,0.00023715,2]
[310098640,1704327953026,154.8915759,0.00023715,2]
[310098641,1704327953287,154.8915759,0.00023715,2]
[310098642,1704327955886,562.64906392,0.00023715,2]
[310098643,1704327955991,723.397708,0.00023244,2]
[310098644,1704327956333,154.8915759,0.00023715,2]
[310098645,1704327957317,2171.4499975,0.00023715,2]
[310098646,1704327957352,4764.53327558,0.00023244,2]
[310098647,1704327966205,154.8915759,0.00021819,4]
[310098648,1704327984210,154.8915759,0.00020918,4]
[310098649,1704328006211,154.8915759,0.00020917,4]
[310098650,1704328017673,731.10315085,0.00020918,2]
[310098651,1704328018070,297.72458751,0.00020918,2]
[310098652,1704328018884,154.8915759,0.00020918,2]
[310098653,1704328021867,1521.43996092,0.00020918,2]
[310098654,1704328023728,165.76756765,0.00020918,2]
[310098655,1704328025541,154.8915759,0.00020918,2]
[310098656,1704328026208,154.8915759,0.00020917,4]
[310098657,1704328029277,18478.84525422,0.00020918,2]
[310098658,1704328029735,-261.34893601,0.00020917,2]
[310098659,1704328029764,-4738.65106399,0.00020918,2]
[310098660,1704328029875,-5000.0,0.00020918,2]
[310098661,1704328029984,-5000.0,0.00020918,2]
[310098662,1704328030128,-5000.0,0.00020918,2]
[310098663,1704328030226,-5000.0,0.00020918,2]
[310098664,1704328030412,-5000.0,0.00020918,2]
[310098665,1704328030522,-5000.0,0.00020918,2]
[310098666,1704328030619,-5000.0,0.00020918,2]
[310098667,1704328030743,-5000.0,0.00020918,2]
[310098668,1704328030853,-5000.0,0.00020918,2]
[310098669,1704328030950,-5000.0,0.00020918,2]
[310098670,1704328031061,-5000.0,0.00020918,2]
[310098671,1704328031317,-5000.0,0.00020918,2]
[310098672,1704328031422,-5000.0,0.00020918,2]
[310098673,1704328031480,-5000.0,0.00020918,2]
[310098674,1704328031610,-5000.0,0.00020918,2]
[310098675,1704328031714,-5000.0,0.00020918,2]
[310098676,1704328031877,-5000.0,0.00020918,2]
[310098677,1704328031920,-5000.0,0.00020918,2]
[310098678,1704328032038,-5000.0,0.00020918,2]
[310098679,1704328032178,-5000.0,0.00020918,2]
[310098680,1704328032418,-5000.0,0.00020918,2]
[310098681,1704328032667,-5000.0,0.00020918,2]
[310098682,1704328032710,-5000.0,0.00020918,2]
[310098683,1704328032779,-5000.0,0.00020918,2]
[310098684,1704328032867,-5000.0,0.00020918,2]
[310098685,1704328032973,-5000.0,0.00020918,2]
[310098686,1704328033210,-5000.0,0.00020918,2]
[310098687,1704328033429,-5000.0,0.00020918,2]
[310098688,1704328033547,-5000.0,0.00020918,2]
[310098689,1704328033712,-5000.0,0.00020918,2]
[310098690,1704328033827,-5000.0,0.00020918,2]
[310098691,1704328033940,-1323.96186454,0.00020918,2]
[310098692,1704328033969,-533.38069631,0.00020918,2]
[310098693,1704328033999,-3142.65743915,0.00020918,2]
[310098694,1704328034202,-5000.0,0.00020918,2]
[310098695,1704328034246,-5000.0,0.00020918,2]
[310098696,1704328034279,-5000.0,0.00020918,2]
[310098697,1704328034553,-696.80076811,0.00020918,2]
[310098698,1704328034587,-297.72458751,0.00020918,2]
[310098699,1704328035203,4005.47464438,0.00020908,3]
[310098700,1704328035233,1654.75535562,0.00020908,3]
[310098701,1704328035675,731.10315085,0.00020918,2]
[310098702,1704328041242,-154.8915759,0.00020918,2]
[310098703,1704328041272,-148.69591286,0.00020918,2]
[310098704,1704328041426,-6.19566304,0.00020918,2]
[310098705,1704328041548,195.10214027,0.00020918,2]
[310098706,1704328041869,102.28968545,0.00020918,2]
[310098707,1704328041898,303.58748876,0.00020918,2]
[310098708,1704328042256,154.8915759,0.00020913,4]
[310098709,1704328042291,-1039.80568256,0.00020918,2]
[310098710,1704328048556,-5000.0,0.00020918,2]
[310098711,1704328048809,-5000.0,0.00020918,2]
[310098712,1704328048950,-5000.0,0.00020918,2]
[310098713,1704328058219,154.8915759,0.00020913,4]
[310098714,1704328076233,154.8915759,0.00020913,4]
[310098715,1704328086587,-533.38069631,0.00020913,2]
[310098716,1704328086608,-154.8915759,0.00020917,2]
[310098717,1704328086630,-693.62946132,0.00020918,2]
[310098718,1704328086652,-121.09826647,0.00020918,2]
[310098719,1704328092231,154.8915759,0.00020913,4]
[310098720,1704328110228,154.8915759,0.00020909,4]
[310098721,1704328128227,154.8915759,0.00020909,4]
[310098722,1704328146235,154.8915759,0.00020909,4]
[310098723,1704328164233,154.8915759,0.00018816,3]
[310098727,1704328172367,-621.52547258,0.00020904,2]
[310098728,1704328172399,-621.52547258,0.00020904,2]
[310098729,1704328172430,-564.63199265,0.00020904,2]
[310098730,1704328181807,200.0,0.00022993,7]
[310098731,1704328182231,154.8915759,0.00018816,3]
[310098732,1704328183206,533.38069631,0.00018816,2]
[310098733,1704328191229,154.8915759,0.00018816,2]
[310098734,1704328195604,297.72458751,0.00018816,2]
[310098735,1704328197203,533.38069631,0.00018816,2]
[310098736,1704328197333,-198.55633635,0.00020901,2]
[310098737,1704328197361,-369.22605694,0.00020902,2]
[310098738,1704328197400,-89.89673805,0.00020903,2]
[310098739,1704328197439,-195.40677621,0.00020903,2]
[310098740,1704328197468,-462.27235513,0.00020903,2]
[310098741,1704328197503,-306.4182602,0.00020903,2]
[310098742,1704328202346,154.8915759,0.00018816,3]
[310098743,1704328205234,154.8915759,0.00018816,2]
[310098744,1704328207139,154.8915759,0.00018815,2]
[310098745,1704328215603,297.72458751,0.00018816,2]
[310098746,1704328217210,511.46350917,0.00018816,2]
[310098747,1704328221243,154.8915759,0.00018816,2]
[310098748,1704328228244,154.8915759,0.0001881,3]
[310098800,1704328232364,-4803.68452735,0.00020898,2]
[310098802,1704328232374,-873.72208253,0.00020899,2]
[310098804,1704328232383,-524.84202363,0.00020899,2]
[310098806,1704328232393,-2027.03693589,0.00020899,2]
[310098809,1704328232403,-2031.60443603,0.00020899,2]
[310098810,1704328232412,-559.68125324,0.000209,2]
[310098812,1704328232424,-154.8915759,0.000209,2]
[310098815,1704328232434,-675.8919533,0.000209,2]
[310098816,1704328232443,-2090.15137702,0.00020901,2]
[310098818,1704328232453,-19632.2086524,0.00020902,2]
[310098821,1704328232463,-102.47467861,0.00020903,2]
[310098823,1704328232472,-178.24808117,0.00020903,2]
[310098825,1704328232482,-520.2185,0.00020903,2]
[310098827,1704328232494,-1576.20853557,0.00020903,2]
[310098829,1704328232503,-1584.80241164,0.00020904,2]
[310098831,1704328232513,-2097.15281013,0.00020907,2]
[310098833,1704328232523,-2067.23046819,0.00020907,2]
[310098835,1704328232532,-154.8915759,0.00020908,2]
[310098837,1704328232542,-196.04348964,0.00020909,2]
[310098839,1704328232551,-198.55633635,0.00020909,2]
[310098841,1704328232561,-253.7100353,0.00020909,2]
[310098843,1704328232570,-1193.2978632,0.0002091,2]
[310098844,1704328232579,-6991.81959191,0.00020913,2]
[310098847,1704328232589,-254.50330608,0.00020918,2]
[310098849,1704328232599,-166.666666,0.00021918,2]
[310098851,1704328232608,-155.27740705,0.00023232,2]
[310098852,1704328232618,-230.12642048,0.00023237,2]
[310098854,1704328232627,-494.33294567,0.00023244,2]
[310098865,1704328233599,297.72458751,0.00018816,2]
[310098900,1704328241538,-1231.11639076,0.00023244,2]
[310098934,1704328243236,237.4847408,0.00018816,2]
[310098944,1704328243343,-2833.60193502,0.00023244,2]
[310098946,1704328243355,-953.46123103,0.00023244,2]
[310098951,1704328244233,154.8915759,0.00021819,4]
[310098985,1704328246429,-366.52937456,0.00023244,2]
[310098986,1704328246490,-8564.515957,0.00023244,2]
[310099177,1704328248295,-5691.90889038,0.00023244,2]
[310099179,1704328248305,-2018.93232262,0.00023715,2]
[310099181,1704328248314,-169.71599389,0.00023715,2]
[310099183,1704328248323,-300.0,0.00023715,2]
[310099185,1704328248332,-284.00480446,0.00023715,2]
[310099187,1704328248341,-168.05985746,0.00023715,2]
[310099189,1704328248351,-184.38602958,0.00023715,2]
[310099192,1704328248361,-2289.86161494,0.00024002,2]
[310099194,1704328248371,-752.71140874,0.00024003,2]
[310099195,1704328248381,-180.57748244,0.00024241,2]
[310099198,1704328248390,-154.90705577,0.00024242,2]
[310099199,1704328248399,-155.08998107,0.00024242,2]
[310099202,1704328248409,-179.89301999,0.00024244,2]
[310099204,1704328248418,-2067.23046819,0.00024245,2]
[310099206,1704328248427,-242.54502311,0.00024245,2]
[310099207,1704328248436,-2027.03693589,0.00024245,2]
[310099209,1704328248446,-623.47877653,0.00024245,2]
[310099211,1704328248455,-517.94273681,0.00024245,2]
[310099213,1704328248465,-405.41028698,0.00024245,2]
[310099215,1704328248474,-1927.11266818,0.00024246,2]
[310099217,1704328248484,-394.23430496,0.00024246,2]
[310099219,1704328248493,-330.20328589,0.00024246,2]
[310099221,1704328248502,-403.98216309,0.00024246,2]
[310099223,1704328248512,-4884.72184,0.00024246,2]
[310099225,1704328248522,-297.43671498,0.00024246,2]
[310099227,1704328248531,-563.26123336,0.00024246,2]
[310099229,1704328248540,-850.7291981,0.00024246,2]
[310099231,1704328248550,-155.5688972,0.00024246,2]
[310099233,1704328248560,-155.11604587,0.00024246,2]
[310099235,1704328248570,-207.43568206,0.00024246,2]
[310099237,1704328248579,-154.89157899,0.00024246,2]
[310099239,1704328248589,-154.93028915,0.00024246,2]
[310099241,1704328248598,-2564.91905854,0.00024247,2]
[310099243,1704328248608,-151.0,0.00024247,2]
[310099252,1704328248675,-174.379375,0.00024251,2]
[310099254,1704328248685,-3000.0,0.00025,2]
[310099256,1704328248694,-2481.12619407,0.00025,2]
[310099258,1704328248704,-155.19744078,0.00025,2]
[310099260,1704328248713,-680.43804704,0.00025,2]
[310099262,1704328248723,-280.0,0.00025293,7]
[310099264,1704328248733,-155.03961237,0.00025625,2]
[310099266,1704328248742,-178.220378,0.00025726,2]
[310099268,1704328248752,-950.17803334,0.00026,2]
[310099270,1704328248770,-2436.01419375,0.00026,2]
[310099272,1704328248780,-391.0,0.00027822,15]
[310099274,1704328248793,-305.17872531,0.00028,2]
[310099276,1704328248828,-1307.25358205,0.000297,2]
[310099278,1704328248838,-157.08568762,0.0003,4]
[310099280,1704328248848,-2129.74279197,0.0003,4]
[310099281,1704328248858,-154.0,0.0003,2]
[310099283,1704328248867,-200.0,0.00030604,15]
[310099285,1704328248877,-348.0,0.00030604,15]
[310099287,1704328248886,-497.22311031,0.00032,2]
[310099288,1704328248896,-528.79758276,0.000329,2]
[310099290,1704328248905,-155.77527391,0.00033,4]
[310099292,1704328248915,-200.0,0.00033664,15]
[310099294,1704328248924,-200.0,0.00033664,15]
[310099296,1704328248933,-368.0,0.00033664,15]
[310099297,1704328248942,-232.0,0.00033935,2]
[310099299,1704328248953,-4657.66153763,0.00034,2]
[310099301,1704328248963,-1000.0,0.00034,7]
[310099303,1704328248973,-151.0,0.00034,2]
[310099304,1704328248983,-1029.543462,0.00034521,2]
[310099306,1704328248993,-723.397708,0.00034866,2]
[310099308,1704328249004,-3538.7366841,0.00035,2]
[310099310,1704328249016,-154.8915759,0.00035,4]
[310099312,1704328249027,-4177.42015254,0.00035,4]
[310099314,1704328249037,-331.97293247,0.00035,4]
[310099315,1704328249047,-590.27084275,0.00035,2]
[310099317,1704328249058,-274.02199365,0.00035098,7]
[310099319,1704328249070,-469.0,0.00035452,2]
[310099321,1704328249081,-503.57227,0.00035616,120]
[310099323,1704328249090,-1029.543462,0.00035798,2]